[Event "9th Bangabandhu Team Mixed 2021"]
[Site "Dhaka"]
[Date "2021.04.05"]
[Round "2.8"]
[White "Noshin, Anjum"]
[Black "Sultana, Zakia"]
[Result "1-0"]
[ECO "C11"]
[WhiteElo "1912"]
[BlackElo "1786"]
[Annotator "ChessBase"]
[PlyCount "155"]
[EventDate "2021.04.04"]
[EventType "team-tourn"]
[EventCountry "BAN"]
[SourceTitle "playchess.com"]
[Source "ChessBase"]
[SourceQuality "1"]
[TimeControl "5400+30"]

1. e4 {[%emt 0:00:00]} e6 {[%emt 0:00:00]} 2. d4 {[%emt 0:00:00]} d5 {[%emt 0:00:00]} 3. Nc3 {[%emt 0:00:00]} Nf6 {[%emt 0:00:03]} 4. e5 {[%emt 0:00:00]} Nfd7 {[%emt 0:00:14]} 5. f4 {[%emt 0:00:11]} c5 {[%emt 0:00:43]} 6. Nf3 {[%emt 0:00:14]} Nc6 {[%emt 0:00:20]} 7. Be3 {[%emt 0:00:22]} Be7 {[%emt 0:01:00]} 8. Qd2 {[%emt 0:00:25]} O-O {[%emt 0:02:53]} 9. dxc5 {[%emt 0:00:23]} Nxc5 {[%emt 0:00:50]} 10. O-O-O {[%emt 0:01:04]} a6 {[%emt 0:01:26]} 11. Kb1 {[%emt 0:11:04]} b5 {[%emt 0:02:03]} 12. Qf2 {[%emt 0:04:45]} Nd7 {[%emt 0:01:53]} 13. Nd4 {[%emt 0:03:41]} Nxd4 {[%emt 0:02:07]} 14. Bxd4 {[%emt 0:00:14]} f6 {[%emt 0:00:49]} 15. exf6 {[%emt 0:05:49]} Bxf6 {[%emt 0:01:39]} 16. Qe3 {[%emt 0:05:53]} Re8 {[%emt 0:04:59]} 17. Bxf6 {[%emt 0:04:49]} Nxf6 {[%emt 0:00:52]} 18. Qd4 {[%emt 0:06:49]} Bb7 {[%emt 0:02:26]} 19. Bd3 {[%emt 0:04:24]} Qc7 {[%emt 0:02:03]} 20. Rhe1 {[%emt 0:08:00]} Rac8 {[%emt 0:07:56]} 21. a3 {[%emt 0:02:55]} Bc6 {[%emt 0:04:55]} 22. Rd2 {[%emt 0:03:07]} Bd7 {[%emt 0:06:13]} 23. h3 {[%emt 0:06:56]} Qc5 {[%emt 0:06:39]} 24. Ne2 {[%emt 0:04:28]} Qxd4 {[%emt 0:03:53]} 25. Nxd4 {[%emt 0:00:05]} Nh5 {[%emt 0:01:30]} 26. Rf2 {[%emt 0:06:59]} g6 {[%emt 0:02:51]} 27. Re5 {[%emt 0:01:21]} Ng7 {[%emt 0:01:34]} 28. g3 {[%emt 0:02:32]} Rb8 {[%emt 0:03:07]} 29. Nb3 {[%emt 0:10:01]} Rec8 {[%emt 0:03:41]} 30. g4 {[%emt 0:01:36]} Ra8 {[%emt 0:03:20]} 31. Nd4 {[%emt 0:01:00]} Rf8 {[%emt 0:02:52]} 32. h4 {[%emt 0:00:26]} Rf7 {[%emt 0:02:02]} 33. h5 {[%emt 0:04:40]} gxh5 {[%emt 0:00:51]} 34. gxh5 {[%emt 0:00:16]} Rf6 {[%emt 0:01:29]} 35. Rg2 {[%emt 0:01:07]} h6 {[%emt 0:01:59]} 36. Rg4 {[%emt 0:01:29]} Kf8 {[%emt 0:01:08]} 37. Bg6 {[%emt 0:00:35]} Rc8 {[%emt 0:00:30]} 38. c3 {[%emt 0:00:17]} Rb8 {[%emt 0:01:55]} 39. Bd3 {[%emt 0:00:43]} Be8 {[%emt 0:00:58]} 40. Bg6 {[%emt 0:00:41]} Bd7 {[%emt 0:00:29]} 41. Re1 {[%emt 0:00:17]} Rb6 {[%emt 0:04:15]} 42. Reg1 {[%emt 0:00:14]} Rb7 {[%emt 0:01:30]} 43. Rh4 {[%emt 0:00:39]} Rc7 {[%emt 0:00:21]} 44. Bd3 {[%emt 0:00:18]} Be8 {[%emt 0:00:06]} 45. Bg6 {[%emt 0:00:25]} Bd7 {[%emt 0:00:24]} 46. Nf3 {[%emt 0:00:24]} Rc4 {[%emt 0:00:37]} 47. Ne5 {[%emt 0:00:07]} Rc7 {[%emt 0:00:42]} 48. Rf1 {[%emt 0:00:45]} Nf5 {[%emt 0:02:06]} 49. Rh3 {[%emt 0:00:51]} Ke7 {[%emt 0:00:44]} 50. Ng4 {[%emt 0:00:20]} Rf8 {[%emt 0:01:36]} 51. Re1 {[%emt 0:01:06]} Rc4 {[%emt 0:03:46]} 52. Bxf5 {[%emt 0:00:36]} Rxf5 {[%emt 0:00:13]} 53. Ne5 {[%emt 0:00:18]} Rc8 {[%emt 0:02:41]} 54. Rg1 {[%emt 0:00:21]} Be8 {[%emt 0:00:26]} 55. Rg7+ {[%emt 0:00:38]} Kd6 {[%emt 0:00:53]} 56. Ng6 {[%emt 0:00:33]} Bxg6 {[%emt 0:02:13]} 57. hxg6 {[%emt 0:00:19]} Rxf4 {[%emt 0:00:32]} 58. Rxh6 {[%emt 0:00:12]} Rg4 {[%emt 0:00:53]} 59. Ra7 {[%emt 0:00:28]} Rc6 {[%emt 0:04:26]} 60. g7 {[%emt 0:00:09]} Rc7 {[%emt 0:00:46]} 61. Rxa6+ {[%emt 0:00:36]} Kc5 {[%emt 0:00:28]} 62. Raxe6 {[%emt 0:01:12]} Rgxg7 {[%emt 0:00:06]} 63. Kc2 {[%emt 0:01:21]} Rg2+ {[%emt 0:01:17]} 64. Kb3 {[%emt 0:00:00]} Rg5 {[%emt 0:00:42]} 65. Rh4 {[%emt 0:00:00]} Rd7 {[%emt 0:00:56]} 66. Rh8 {[%emt 0:00:24]} Rc7 {[%emt 0:00:45]} 67. Rd8 {[%emt 0:00:05]} Rc6 {[%emt 0:00:37]} 68. Ree8 {[%emt 0:00:39]} Rh5 {[%emt 0:00:46]} 69. Rb8 {[%emt 0:00:25]} Rc7 {[%emt 0:00:27]} 70. Re6 {[%emt 0:00:12]} Rc6 {[%emt 0:00:55]} 71. Re7 {[%emt 0:00:09]} d4 {[%emt 0:00:53]} 72. Reb7 {[%emt 0:00:24]} Rch6 {[%emt 0:01:50]} 73. Rxb5+ {[%emt 0:00:17]} Kc6 {[%emt 0:00:11]} 74. Rxh5 {[%emt 0:00:11]} Rxh5 {[%emt 0:00:06]} 75. cxd4 {[%emt 0:00:12]} Kc7 {[%emt 0:00:21]} 76. Re8 {[%emt 0:00:26]} Rb5+ {[%emt 0:00:24]} 77. Kc3 {[%emt 0:00:06]} Kd7 {[%emt 0:00:11]} 78. Re5 {[%emt 0:00:06]} 1-0

[Event "9th Bangabandhu Team Mixed 2021"]
[Site "Dhaka"]
[Date "2021.04.05"]
[Round "2.9"]
[White "Rafi, Islam"]
[Black "Chowdhury, Sohel"]
[Result "0-1"]
[ECO "D02"]
[WhiteElo "1788"]
[BlackElo "2091"]
[Annotator "ChessBase"]
[PlyCount "166"]
[EventDate "2021.04.04"]
[EventType "team-tourn"]
[EventCountry "BAN"]
[SourceTitle "playchess.com"]
[Source "ChessBase"]
[SourceQuality "1"]
[TimeControl "5400+30"]

1. d4 {[%emt 0:00:02]} d5 {[%emt 0:00:00]} 2. Nf3 {[%emt 0:00:18]} Nf6 {[%emt 0:00:00]} 3. Bf4 {[%emt 0:00:33]} e6 {[%emt 0:00:05]} 4. e3 {[%emt 0:00:39]} c5 {[%emt 0:00:09]} 5. c3 {[%emt 0:00:29]} Nc6 {[%emt 0:00:19]} 6. Nbd2 {[%emt 0:01:28]} Bd6 {[%emt 0:00:16]} 7. Bg3 {[%emt 0:03:30]} O-O {[%emt 0:00:41]} 8. Bd3 {[%emt 0:00:41]} b6 {[%emt 0:00:31]} 9. Bxd6 {[%emt 0:06:43]} Qxd6 {[%emt 0:03:34]} 10. O-O {[%emt 0:01:07]} e5 {[%emt 0:03:01]} 11. dxe5 {[%emt 0:00:29]} Nxe5 {[%emt 0:00:03]} 12. Nxe5 {[%emt 0:02:01]} Qxe5 {[%emt 0:00:03]} 13. Nf3 {[%emt 0:05:06]} Qe7 {[%emt 0:03:20]} 14. h3 {[%emt 0:01:51]} Bb7 {[%emt 0:02:52]} 15. Qa4 {[%emt 0:03:35]} d4 {[%emt 0:12:49]} 16. cxd4 {[%emt 0:05:47]} Bxf3 {[%emt 0:00:14]} 17. gxf3 {[%emt 0:00:20]} cxd4 {[%emt 0:00:25]} 18. Rae1 {[%emt 0:09:53]} dxe3 {[%emt 0:01:57]} 19. Rxe3 {[%emt 0:07:47]} Qc5 {[%emt 0:07:48]} 20. Rfe1 {[%emt 0:09:55]} a5 {[%emt 0:04:43]} 21. a3 {[%emt 0:02:51]} Rad8 {[%emt 0:01:34]} 22. Qh4 {[%emt 0:10:27]} h6 {[%emt 0:02:43]} 23. Qg3 {[%emt 0:07:04]} Rd5 {[%emt 0:01:39]} 24. Re5 {[%emt 0:06:18]} Qd4 {[%emt 0:04:56]} 25. Rxd5 {[%emt 0:02:24]} Qxd5 {[%emt 0:02:14]} 26. Bf1 {[%emt 0:02:17]} Qd2 {[%emt 0:03:22]} 27. Re2 {[%emt 0:02:02]} Qd1 {[%emt 0:02:20]} 28. Qf4 {[%emt 0:01:54]} Rd8 {[%emt 0:01:36]} 29. Kg2 {[%emt 0:01:35]} Nh5 {[%emt 0:05:49]} 30. Qe5 {[%emt 0:02:35]} g5 {[%emt 0:05:25]} 31. Re1 {[%emt 0:00:59]} Nf4+ {[%emt 0:00:37]} 32. Kg3 {[%emt 0:00:19]} Qd7 {[%emt 0:01:03]} 33. Qe3 {[%emt 0:02:40]} Qd6 {[%emt 0:01:43]} 34. Qe5 {[%emt 0:00:26]} Qd2 {[%emt 0:02:05]} 35. Qe7 {[%emt 0:00:35]} Ng6 {[%emt 0:00:37]} 36. Qe3 {[%emt 0:00:45]} Qxb2 {[%emt 0:00:29]} 37. Bc4 {[%emt 0:00:19]} Qf6 {[%emt 0:00:56]} 38. Kg2 {[%emt 0:00:34]} Nh4+ {[%emt 0:00:40]} 39. Kf1 {[%emt 0:00:35]} Nxf3 {[%emt 0:00:24]} 40. Rc1 {[%emt 0:00:25]} Nd2+ {[%emt 0:01:21]} 41. Kg1 {[%emt 0:00:30]} Nxc4 {[%emt 0:01:04]} 42. Rxc4 {[%emt 0:00:06]} Qd6 {[%emt 0:02:08]} 43. Re4 {[%emt 0:00:39]} Kg7 {[%emt 0:01:52]} 44. Qc3+ {[%emt 0:00:15]} Qf6 {[%emt 0:00:40]} 45. Qg3 {[%emt 0:00:57]} Rd1+ {[%emt 0:00:30]} 46. Kg2 {[%emt 0:00:23]} Qc6 {[%emt 0:02:42]} 47. Qe5+ {[%emt 0:01:22]} Qf6 {[%emt 0:01:42]} 48. Qg3 {[%emt 0:00:00]} Rd4 {[%emt 0:00:12]} 49. Rxd4 {[%emt 0:00:21]} Qxd4 {[%emt 0:00:02]} 50. Qf3 {[%emt 0:00:14]} b5 {[%emt 0:01:16]} 51. Qf5 {[%emt 0:00:13]} Qc4 {[%emt 0:02:34]} 52. Qe5+ {[%emt 0:00:29]} Kg6 {[%emt 0:00:03]} 53. Qd6+ {[%emt 0:00:57]} Qe6 {[%emt 0:00:54]} 54. Qd3+ {[%emt 0:00:14]} Qf5 {[%emt 0:00:20]} 55. Qd6+ {[%emt 0:00:18]} Kg7 {[%emt 0:00:50]} 56. Qd4+ {[%emt 0:00:45]} Kh7 {[%emt 0:00:00]} 57. Qc3 {[%emt 0:00:28]} Qe4+ {[%emt 0:00:00]} 58. Kg1 {[%emt 0:00:26]} b4 {[%emt 0:00:04]} 59. axb4 {[%emt 0:00:17]} axb4 {[%emt 0:00:04]} 60. Qf6 {[%emt 0:00:44]} Qe6 {[%emt 0:00:36]} 61. Qf3 {[%emt 0:00:56]} Kg7 {[%emt 0:02:01]} 62. Qd3 {[%emt 0:00:27]} Qe1+ {[%emt 0:00:31]} 63. Kg2 {[%emt 0:00:08]} Qc3 {[%emt 0:00:14]} 64. Qf5 {[%emt 0:00:34]} Qd4 {[%emt 0:02:23]} 65. h4 {[%emt 0:00:46]} Qxh4 {[%emt 0:02:23]} 66. Qe5+ {[%emt 0:00:12]} Kg6 {[%emt 0:00:14]} 67. Qd6+ {[%emt 0:00:27]} Kh7 {[%emt 0:01:53]} 68. Qf6 {[%emt 0:01:00]} Qf4 {[%emt 0:00:19]} 69. Qb2 {[%emt 0:00:23]} Qe4+ {[%emt 0:00:27]} 70. f3 {[%emt 0:00:34]} Qc4 {[%emt 0:00:44]} 71. Qf6 {[%emt 0:00:25]} Qe6 {[%emt 0:00:42]} 72. Qd4 {[%emt 0:00:17]} b3 {[%emt 0:01:17]} 73. Qd3+ {[%emt 0:00:08]} f5 {[%emt 0:00:30]} 74. Kf2 {[%emt 0:01:03]} Kg6 {[%emt 0:00:53]} 75. Qd4 {[%emt 0:00:36]} Qc6 {[%emt 0:00:45]} 76. Qd8 {[%emt 0:00:30]} Kh5 {[%emt 0:04:34]} 77. Kg3 {[%emt 0:00:31]} f4+ {[%emt 0:00:46]} 78. Kg2 {[%emt 0:00:34]} Qc2+ {[%emt 0:00:32]} 79. Kh3 {[%emt 0:00:25]} Qf5+ {[%emt 0:00:15]} 80. Kg2 {[%emt 0:00:30]} b2 {[%emt 0:02:41]} 81. Qe8+ {[%emt 0:00:30]} Qg6 {[%emt 0:00:05]} 82. Qd7 {[%emt 0:00:34]} g4 {[%emt 0:02:08]} 83. Qd5+ {[%emt 0:01:04]} Kh4 {[%emt 0:00:24]} 0-1

[Event "9th Bangabandhu Team Mixed 2021"]
[Site "Dhaka"]
[Date "2021.04.05"]
[Round "2.10"]
[White "Masum, Hossain"]
[Black "Sabujur, Rahman"]
[Result "1-0"]
[ECO "D45"]
[WhiteElo "2061"]
[BlackElo "1862"]
[Annotator "ChessBase"]
[PlyCount "167"]
[EventDate "2021.04.04"]
[EventType "team-tourn"]
[EventCountry "BAN"]
[SourceTitle "playchess.com"]
[Source "ChessBase"]
[SourceQuality "1"]
[TimeControl "5400+30"]

1. d4 {[%emt 0:00:00]} e6 {[%emt 0:00:00]} 2. c4 {[%emt 0:00:00]} d5 {[%emt 0:00:04]} 3. Nc3 {[%emt 0:00:00]} Nf6 {[%emt 0:00:46]} 4. Nf3 {[%emt 0:00:00]} Bb4 {[%emt 0:00:30]} 5. e3 {[%emt 0:05:48]} Ne4 {[%emt 0:03:14]} 6. Qc2 {[%emt 0:00:35]} c6 {[%emt 0:02:04]} 7. Bd3 {[%emt 0:00:03]} f5 {[%emt 0:00:33]} 8. O-O {[%emt 0:01:04]} O-O {[%emt 0:00:31]} 9. Ne5 {[%emt 0:00:12]} Nd7 {[%emt 0:02:30]} 10. f3 {[%emt 0:01:43]} Nxe5 {[%emt 0:07:27]} 11. dxe5 {[%emt 0:00:41]} Nxc3 {[%emt 0:01:00]} 12. bxc3 {[%emt 0:00:23]} Bc5 {[%emt 0:01:33]} 13. Kh1 {[%emt 0:00:40]} Qc7 {[%emt 0:01:57]} 14. f4 {[%emt 0:02:35]} b6 {[%emt 0:01:24]} 15. cxd5 {[%emt 0:02:54]} cxd5 {[%emt 0:00:49]} 16. c4 {[%emt 0:00:02]} Bb7 {[%emt 0:01:10]} 17. cxd5 {[%emt 0:00:04]} Bxd5 {[%emt 0:00:35]} 18. e4 {[%emt 0:02:19]} fxe4 {[%emt 0:02:27]} 19. Bxe4 {[%emt 0:00:02]} Bxe4 {[%emt 0:00:29]} 20. Qxe4 {[%emt 0:00:02]} Rac8 {[%emt 0:00:27]} 21. Bb2 {[%emt 0:00:32]} Qc6 {[%emt 0:00:16]} 22. Qe2 {[%emt 0:06:09]} Qa4 {[%emt 0:01:33]} 23. Qg4 {[%emt 0:03:27]} Rf5 {[%emt 0:00:52]} 24. Rad1 {[%emt 0:08:49]} Qxa2 {[%emt 0:05:24]} 25. Rd7 {[%emt 0:24:27]} Bf8 {[%emt 0:02:11]} 26. Bc1 {[%emt 0:06:54]} Qc4 {[%emt 0:02:24]} 27. Qd1 {[%emt 0:04:46]} a5 {[%emt 0:02:19]} 28. Be3 {[%emt 0:01:18]} b5 {[%emt 0:00:40]} 29. Qa1 {[%emt 0:10:15]} Qe4 {[%emt 0:01:00]} 30. Rf3 {[%emt 0:03:05]} a4 {[%emt 0:00:42]} 31. Rg3 {[%emt 0:00:10]} Rf7 {[%emt 0:00:29]} 32. Rxf7 {[%emt 0:05:35]} Kxf7 {[%emt 0:00:25]} 33. f5 {[%emt 0:02:25]} exf5 {[%emt 0:00:47]} 34. Qd1 {[%emt 0:07:26]} Qc6 {[%emt 0:00:56]} 35. Qh5+ {[%emt 0:00:24]} Kg8 {[%emt 0:00:23]} 36. Qxf5 {[%emt 0:00:01]} Qc1+ {[%emt 0:00:12]} 37. Bg1 {[%emt 0:00:05]} Qc7 {[%emt 0:04:27]} 38. h4 {[%emt 0:00:27]} Re8 {[%emt 0:01:02]} 39. Bd4 {[%emt 0:00:25]} Qf7 {[%emt 0:00:20]} 40. Qg4 {[%emt 0:01:12]} Qe6 {[%emt 0:00:23]} 41. Qg5 {[%emt 0:00:41]} b4 {[%emt 0:03:40]} 42. h5 {[%emt 0:00:26]} h6 {[%emt 0:00:19]} 43. Qe3 {[%emt 0:00:27]} Qf7 {[%emt 0:00:54]} 44. Qxh6 {[%emt 0:01:16]} Re6 {[%emt 0:01:39]} 45. Qg5 {[%emt 0:00:12]} Kh7 {[%emt 0:00:33]} 46. Rf3 {[%emt 0:00:22]} Qe8 {[%emt 0:01:02]} 47. Kg1 {[%emt 0:01:49]} a3 {[%emt 0:00:51]} 48. Qf5+ {[%emt 0:00:22]} Kg8 {[%emt 0:00:33]} 49. h6 {[%emt 0:00:42]} Rxh6 {[%emt 0:00:31]} 50. e6 {[%emt 0:00:09]} Rxe6 {[%emt 0:00:21]} 51. Qd5 {[%emt 0:00:13]} Kh7 {[%emt 0:01:27]} 52. Rxf8 {[%emt 0:00:24]} Re1+ {[%emt 0:01:59]} 53. Kf2 {[%emt 0:00:01]} Qe2+ {[%emt 0:01:45]} 54. Kg3 {[%emt 0:00:00]} Qd3+ {[%emt 0:00:40]} 55. Rf3 {[%emt 0:00:07]} Qg6+ {[%emt 0:02:49]} 56. Kf2 {[%emt 0:00:02]} Qe6 {[%emt 0:01:32]} 57. Qh5+ {[%emt 0:03:42]} Kg8 {[%emt 0:00:18]} 58. Qc5 {[%emt 0:00:15]} Re2+ {[%emt 0:01:16]} 59. Kg1 {[%emt 0:00:17]} Re1+ {[%emt 0:00:58]} 60. Kf2 {[%emt 0:00:17]} Re2+ {[%emt 0:01:27]} 61. Kg1 {[%emt 0:00:05]} Re1+ {[%emt 0:39:41]} 62. Kh2 {[%emt 0:00:12]} Qh6+ {[%emt 0:00:00]} 63. Kg3 {[%emt 0:00:01]} Re6 {[%emt 0:00:00]} 64. Qxb4 {[%emt 0:02:00]} Qg5+ {[%emt 0:00:00]} 65. Kf2 {[%emt 0:00:11]} Qh4+ {[%emt 0:00:00]} 66. Kf1 {[%emt 0:00:44]} Qe7 {[%emt 0:00:00]} 67. Qxe7 {[%emt 0:00:20]} Rxe7 {[%emt 0:00:00]} 68. Rxa3 {[%emt 0:00:02]} Rd7 {[%emt 0:00:00]} 69. Ra4 {[%emt 0:00:46]} Kh7 {[%emt 0:00:00]} 70. Ke2 {[%emt 0:00:07]} Kh6 {[%emt 0:00:00]} 71. Ke3 {[%emt 0:00:11]} g6 {[%emt 0:00:00]} 72. Bf6 {[%emt 0:00:32]} g5 {[%emt 0:00:00]} 73. g4 {[%emt 0:00:39]} Rd6 {[%emt 0:00:00]} 74. Be5 {[%emt 0:00:03]} Rd1 {[%emt 0:00:00]} 75. Ra6+ {[%emt 0:00:28]} Kh7 {[%emt 0:00:00]} 76. Ke4 {[%emt 0:00:01]} Rf1 {[%emt 0:00:00]} 77. Rf6 {[%emt 0:00:17]} Re1+ {[%emt 0:00:00]} 78. Kf5 {[%emt 0:00:02]} Re2 {[%emt 0:00:00]} 79. Rf7+ {[%emt 0:00:46]} Kh6 {[%emt 0:00:00]} 80. Bg7+ {[%emt 0:00:05]} Kh7 {[%emt 0:00:00]} 81. Bf6+ {[%emt 0:01:22]} Kg8 {[%emt 0:00:00]} 82. Rd7 {[%emt 0:00:19]} Kf8 {[%emt 0:00:00]} 83. Kg6 {[%emt 0:00:26]} Re8 {[%emt 0:00:00]} 84. Rh7 {[%emt 0:00:08]} 1-0

[Event "9th Bangabandhu Team Mixed 2021"]
[Site "Dhaka"]
[Date "2021.04.05"]
[Round "2.11"]
[White "Mohammed Abdul, Malek"]
[Black "Jabed Al Azad"]
[Result "0-1"]
[ECO "D27"]
[WhiteElo "2125"]
[BlackElo "1983"]
[Annotator "ChessBase"]
[PlyCount "44"]
[EventDate "2021.04.04"]
[EventType "team-tourn"]
[EventCountry "BAN"]
[SourceTitle "playchess.com"]
[Source "ChessBase"]
[SourceQuality "1"]
[TimeControl "5400+30"]

1. d4 {[%emt 1:30:30]} d5 {[%emt 1:30:30]} 2. c4 {[%emt 0:00:30]} dxc4 {[%emt 0:00:30]} 3. Nf3 {[%emt 0:00:30]} c5 {[%emt 0:00:30]} 4. e3 {[%emt 0:00:30]} Nf6 {[%emt 0:00:30]} 5. Bxc4 {[%emt 0:00:30]} e6 {[%emt 0:00:30]} 6. O-O {[%emt 0:00:30]} a6 {[%emt 0:00:30]} 7. a4 {[%emt 0:00:30]} b6 {[%emt 0:00:30]} 8. Nc3 {[%emt 0:00:30]} Bb7 {[%emt 0:00:30]} 9. Re1 {[%emt 0:00:30]} Nc6 {[%emt 0:00:30]} 10. b3 {[%emt 0:00:30]} cxd4 {[%emt 0:00:30]} 11. exd4 {[%emt 0:00:30]} Bb4 {[%emt 0:00:30]} 12. Qd3 {[%emt 0:00:30]} O-O {[%emt 0:00:30]} 13. Bg5 {[%emt 0:00:30]} Na5 {[%emt 0:00:30]} 14. Ne5 {[%emt 0:00:30]} Rc8 {[%emt 0:00:30]} 15. Ne4 {[%emt 0:00:30]} Bxe1 {[%emt 0:00:30]} 16. Nxf6+ {[%emt 0:00:30]} gxf6 {[%emt 0:00:30]} 17. Bh6 {[%emt 0:00:30]} Bd2 {[%emt 0:00:30]} 18. Qg3+ {[%emt 0:00:30]} Bg5 {[%emt 0:00:30]} 19. Nd7 {[%emt 0:00:30]} Kh8 {[%emt 0:00:30]} 20. Bxg5 {[%emt 0:00:30]} fxg5 {[%emt 0:00:30]} 21. Qe5+ {[%emt 0:00:30]} f6 {[%emt 0:00:30]} 22. Qxe6 {[%emt 0:00:30]} Rc6 {[%emt 0:00:30]} 0-1

[Event "9th Bangabandhu Team Mixed 2021"]
[Site "Dhaka"]
[Date "2021.04.05"]
[Round "2.12"]
[White "Nusrat Jahan, Alo"]
[Black "Taspia, Tahsin Prima"]
[Result "1/2-1/2"]
[ECO "D02"]
[WhiteElo "1712"]
[BlackElo "1328"]
[Annotator "NA"]
[PlyCount "91"]
[EventDate "2021.04.04"]
[EventType "team-tourn"]
[EventCountry "BAN"]
[SourceTitle "playchess.com"]
[Source "ChessBase"]
[SourceQuality "1"]
[TimeControl "5400+30"]

1. d4 {[%emt 1:30:30]} d5 {[%emt 1:30:30]} 2. Bf4 {[%emt 0:00:30]} Bf5 {[%emt 0:00:30]} 3. Nf3 {[%emt 0:00:30]} Nf6 {[%emt 0:00:30]} 4. e3 {[%emt 0:00:30]} a6 {[%emt 0:00:30]} 5. c4 {[%emt 0:00:30]} e6 {[%emt 0:00:30]} 6. a3 {[%emt 0:00:30]} Bd6 {[%emt 0:00:30]} 7. Bg3 {[%emt 0:00:30]} O-O {[%emt 0:00:30]} 8. Nc3 {[%emt 0:00:30]} c5 {[%emt 0:00:30]} 9. cxd5 {[%emt 0:00:30]} exd5 {[%emt 0:00:30]} 10. dxc5 {[%emt 0:00:30]} Bxc5 {[%emt 0:00:30]} 11. Be5 {[%emt 0:00:30]} Nbd7 {[%emt 0:00:30]} 12. Bd4 {[%emt 0:00:30]} Be6 {[%emt 0:00:30]} 13. Bd3 {[%emt 0:00:30]} h6 {[%emt 0:00:30]} 14. O-O {[%emt 0:00:30]} Rc8 {[%emt 0:00:30]} 15. Rc1 {[%emt 0:00:30]} Re8 {[%emt 0:00:30]} 16. Bb1 {[%emt 0:00:30]} Bg4 {[%emt 0:00:30]} 17. Bxf6 {[%emt 0:00:30]} Nxf6 {[%emt 0:00:30]} 18. h3 {[%emt 0:00:30]} Be6 {[%emt 0:00:30]} 19. Nd4 {[%emt 0:00:30]} Qd7 {[%emt 0:00:30]} 20. Qd2 {[%emt 0:00:30]} Ba7 {[%emt 0:00:30]} 21. Rfd1 {[%emt 0:00:30]} Bb8 {[%emt 0:00:30]} 22. Nxe6 {[%emt 0:00:30]} fxe6 {[%emt 0:00:30]} 23. e4 {[%emt 0:00:30]} Rcd8 {[%emt 0:00:30]} 24. exd5 {[%emt 0:00:30]} Nxd5 {[%emt 0:00:30]} 25. Nxd5 {[%emt 0:00:30]} exd5 {[%emt 0:00:30]} 26. Ba2 {[%emt 0:00:30]} Re5 {[%emt 0:00:30]} 27. Rc5 {[%emt 0:00:30]} Kh8 {[%emt 0:00:30]} 28. Rxd5 {[%emt 0:00:30]} Rxd5 {[%emt 0:00:30]} 29. Bxd5 {[%emt 0:00:30]} Qc7 {[%emt 0:00:30]} 30. g3 {[%emt 0:00:30]} Ba7 {[%emt 0:00:30]} 31. Qd3 {[%emt 0:00:30]} b5 {[%emt 0:00:30]} 32. Kg2 {[%emt 0:00:30]} Qe5 {[%emt 0:00:30]} 33. Qb3 {[%emt 0:00:30]} Qe2 {[%emt 0:00:30]} 34. Qf3 {[%emt 0:00:30]} Qxb2 {[%emt 0:00:30]} 35. Qf7 {[%emt 0:00:30]} Bc5 {[%emt 0:00:30]} 36. Re1 {[%emt 0:00:30]} Qf6 {[%emt 0:00:30]} 37. f3 {[%emt 0:00:30]} Qxf7 {[%emt 0:00:30]} 38. Bxf7 {[%emt 0:00:30]} Rd2+ {[%emt 0:00:30]} 39. Kh1 {[%emt 0:00:30]} Bxa3 {[%emt 0:00:30]} 40. Bg6 {[%emt 0:00:30]} Rd8 {[%emt 0:00:30]} 41. Re6 {[%emt 0:00:30]} Ra8 {[%emt 0:00:30]} 42. Be4 {[%emt 0:00:30]} Rd8 {[%emt 0:00:30]} 43. Rxa6 {[%emt 0:00:30]} b4 {[%emt 0:00:30]} 44. Rb6 {[%emt 0:00:30]} Kg8 {[%emt 0:00:30]} 45. Kg2 {[%emt 0:00:30]} Rd2+ {[%emt 0:00:30]} 46. Kf1 {[%emt 0:00:30]} 1/2-1/2